bitfinex/quotes_ETHUSD_20250314
["timestamp","ask_amount","ask_price","bid_price","bid_amount"]
[1741952335229,5.99636,1910.6,1910.3,0.07652086]
[1741952336362,5.99636,1910.6,1910.3,5.31122086]
[1741952337024,0.06543143,1910.6,1910.3,5.31115086]
[1741952337335,0.06543143,1910.6,1910.4,5.23447]
[1741952337724,0.06543143,1910.6,1910.5,0.07617493]
[1741952338116,0.06543143,1910.6,1910.3,5.23461]
[1741952338316,0.06543143,1910.6,1910.5,0.07599321]
[1741952338542,0.06543143,1910.6,1910.4,0.07611772]
[1741952338738,0.06543143,1910.6,1910.5,0.07594476]
[1741952339144,0.06543143,1910.6,1910.3,6.46438214]
[1741952339416,0.06543143,1910.6,1910.4,0.07611772]
[1741952339726,0.06543143,1910.6,1910.3,5.23459]
[1741952339935,8.29939143,1910.6,1910.5,0.07594476]
[1741952340132,8.29939143,1910.6,1910.4,0.07611772]
[1741952340133,13.53357143,1910.6,1910.4,0.07611772]
[1741952340333,13.46814,1910.6,1910.5,0.07594476]
[1741952340625,6.01664,1910.5,1910.2,0.7734]
[1741952340955,6.01664,1910.5,1910.1,5.23523]
[1741952341250,6.01664,1910.5,1910.1,11.59986]
[1741952341440,6.01664,1910.5,1910.1,6.36463]
[1741952341635,6.01664,1910.5,1910.1,11.59982]
[1741952341843,5.23452,1910.4,1910.1,6.36463]
[1741952342036,0.06543798,1910.3,1910.1,6.36463]
[1741952342751,0.06543794,1910.4,1910.1,6.36463]
[1741952343053,5.2345,1910.4,1910.1,6.36463]
[1741952343931,0.06543794,1910.3,1910.1,6.36463]
[1741952344958,0.06543794,1910.4,1910.1,6.36463]
[1741952345988,5.30004794,1910.4,1910.0,6.06007]
[1741952346255,6.01667,1910.5,1910.1,5.23528]
[1741952346460,6.01657,1910.5,1910.1,5.23513]
[1741952346656,0.7823,1910.5,1910.1,5.23513]
[1741952346959,0.06543938,1910.4,1910.1,5.23513]
[1741952347164,0.06543938,1910.4,1910.2,0.523513]
[1741952348925,0.06543938,1910.4,1910.2,5.758553]
[1741952349256,0.06543938,1910.4,1910.2,5.758483]
[1741952349647,8.29945782,1910.6,1910.3,5.23477]
[1741952349853,8.29945782,1910.6,1910.2,5.758383]
[1741952350049,3.06543782,1910.6,1910.3,5.8103783]
[1741952350365,29.34445,1911.1,1910.4,0.7631]
[1741952350660,5.29839211,1911.0,1910.5,10.46837]
[1741952350851,5.23327,1910.9,1910.5,5.23414]
[1741952351167,0.06542247,1910.8,1910.5,5.23414]
[1741952351374,0.06542247,1910.8,1910.5,6.357311]
[1741952351852,5.23386,1910.7,1910.3,5.8105883]
[1741952352053,11.25834,1910.8,1910.4,5.23446]
[1741952352263,11.25833,1910.8,1910.4,5.23446]
[1741952352461,6.02472,1910.8,1910.5,0.0732022]
[1741952352673,6.09014625,1910.8,1910.5,0.0732022]
[1741952353167,0.85672625,1910.8,1910.5,0.0732022]
[1741952353330,0.85672625,1910.8,1910.5,5.83807342]
[1741952353530,8.23315,1910.9,1910.5,5.83795342]
[1741952354136,0.06542599,1910.8,1910.5,5.83795342]
[1741952354649,0.06542599,1910.8,1910.6,5.23394]
[1741952354847,3.06542238,1910.9,1910.6,5.30692093]
[1741952355049,3.0,1910.9,1910.7,5.23351]
[1741952355252,3.0,1910.9,1910.7,6.09359988]
[1741952355836,0.06541927,1911.0,1910.8,5.23341]
[1741952356146,11.25152,1911.5,1911.1,5.23244]
[1741952356346,11.25152,1911.5,1911.2,6.515044]
[1741952356347,3.06540453,1911.4,1911.2,6.515044]
[1741952356556,3.06540453,1911.4,1911.2,0.8313893]
[1741952356741,3.0,1911.4,1911.2,6.0636893]
[1741952357162,3.0,1911.4,1911.2,0.8313893]
[1741952357362,3.0,1911.4,1911.2,6.0636993]
[1741952357559,0.06540427,1911.5,1911.2,6.0636993]
[1741952357871,0.06540427,1911.5,1911.2,7.19332523]
[1741952358061,5.29695427,1911.5,1911.2,1.96101523]
[1741952358259,0.06540427,1911.5,1911.2,7.19322523]
[1741952359380,5.29702427,1911.5,1911.2,1.96101523]
[1741952359545,5.23204,1911.3,1911.2,0.0718893]
[1741952359745,9.02334,1911.3,1911.2,0.0718893]
[1741952360052,5.23292,1911.0,1910.6,6.03483]
[1741952360261,5.23292,1911.0,1910.7,0.55]
[1741952360448,5.23292,1911.0,1910.6,6.03471]
[1741952360653,5.23292,1911.0,1910.6,1.626191]
[1741952360654,0.06541597,1910.9,1910.6,1.626191]
[1741952360995,5.23343,1910.8,1910.5,5.2342]
[1741952361293,0.0654224,1910.7,1910.4,11.26977]
[1741952361457,5.23343,1910.8,1910.4,11.26977]
[1741952361644,5.23319,1910.9,1910.5,6.361057]
[1741952362046,9.02,1911.1,1910.7,0.7634]
[1741952362260,0.06542103,1911.0,1910.7,0.7634]
[1741952362546,6.05879103,1911.0,1910.6,6.61373]
[1741952362945,6.05879103,1911.0,1910.6,11.84752]
[1741952363267,14.25274,1911.1,1910.7,6.418352]
[1741952363468,0.06541731,1911.0,1910.7,6.418352]
[1741952363855,0.06541731,1911.0,1910.7,11.651852]
[1741952364056,14.25274,1911.1,1910.8,5.2334]
[1741952364376,0.06541674,1911.0,1910.7,6.418252]
[1741952364959,14.2527,1911.1,1910.7,6.418252]
[1741952365279,14.2527,1911.1,1910.7,11.651752]
[1741952365481,14.2527,1911.1,1910.8,6.3985552]
[1741952365779,0.06541448,1911.0,1910.8,1.1651752]
[1741952365958,5.29830448,1911.0,1910.7,5.2336]
[1741952366158,0.06541448,1911.0,1910.7,5.2336]
[1741952366776,0.06541448,1911.0,1910.7,5.23351]
[1741952366970,0.06541448,1911.0,1910.7,10.46706]
[1741952367150,0.06541448,1911.0,1910.7,5.23351]
[1741952367350,0.06541448,1911.0,1910.7,11.651732]
[1741952367561,8.29808458,1911.1,1910.8,0.07209142]
[1741952368663,3.06541458,1911.1,1910.8,0.07209142]
[1741952368983,3.0,1911.1,1910.8,5.30532142]
[1741952369372,3.0,1911.1,1910.9,5.23306]
[1741952369552,3.0,1911.1,1910.8,5.30541142]
[1741952369752,3.0,1911.1,1911.0,0.07174567]
[1741952369980,8.23271,1911.1,1910.9,0.07191854]
[1741952370178,8.23271,1911.1,1911.0,0.07174567]
[1741952370682,8.23271,1911.1,1910.7,6.418362]
[1741952370683,5.23286,1911.0,1910.7,1.184722]
[1741952370853,10.46591,1911.0,1910.7,1.184722]
[1741952371385,10.46592,1911.0,1910.7,1.184722]
[1741952371552,5.23286,1911.0,1910.7,1.184722]
[1741952371753,5.23326,1910.9,1910.7,1.184722]
[1741952371978,5.23326,1910.9,1910.6,0.8298]
[1741952372183,5.29868077,1910.9,1910.6,0.8298]
[1741952373996,6.08998077,1910.9,1910.5,5.23407]
[1741952374578,6.08998077,1910.9,1910.5,10.4682]
[1741952374979,6.08998077,1910.9,1910.5,5.23407]
[1741952375181,5.23363,1910.8,1910.5,1.183194]
[1741952375386,5.29926562,1910.7,1910.4,1.3634]
[1741952375571,5.29926562,1910.7,1910.4,6.59786]
[1741952375765,5.23358,1910.8,1910.4,6.59786]
[1741952375972,5.29900559,1910.8,1910.5,0.659786]
[1741952376372,10.53261559,1910.8,1910.5,0.659786]
[1741952376669,0.7913,1910.9,1910.6,5.23387]
[1741952376670,3.0,1910.9,1910.6,5.23387]
[1741952376875,0.06542558,1910.8,1910.5,11.128066]
[1741952377181,0.06542558,1910.8,1910.3,0.5758383]
[1741952377182,0.85672558,1910.8,1910.3,0.5758383]
[1741952377386,5.23459,1910.4,1910.0,10.471]
[1741952377585,5.30002714,1910.4,1910.0,5.23541]
[1741952378887,0.06543714,1910.4,1910.1,5.23519]
[1741952379098,6.02526,1910.6,1910.2,5.23496]
[1741952379283,5.23396,1910.6,1910.2,11.071796]
[1741952379488,5.23396,1910.6,1910.2,5.836836]
[1741952379797,5.23425,1910.5,1910.2,5.836836]
[1741952379998,5.23425,1910.5,1910.2,0.601916]
[1741952380199,3.0,1910.6,1910.3,6.01872]
[1741952380404,3.06543045,1910.6,1910.3,6.6807836]
[1741952380596,3.0,1910.6,1910.3,6.6807836]
[1741952380800,3.0,1910.6,1910.3,1.4462636]
[1741952380801,0.06543305,1910.5,1910.3,1.4462636]
[1741952380994,3.0,1910.6,1910.3,6.6810236]
[1741952381298,5.29923305,1910.7,1910.4,5.23437]
[1741952381299,0.0654322,1910.7,1910.4,5.23437]
[1741952381875,0.0654322,1910.7,1910.4,6.42590736]
[1741952382276,0.0654322,1910.7,1910.4,1.19153736]
[1741952382472,0.0654322,1910.7,1910.5,0.06351359]
[1741952383407,3.0,1910.6,1910.5,0.06351359]
[1741952383994,9.02525,1910.6,1910.2,6.04092]
[1741952384188,9.02525,1910.6,1910.5,0.06351359]
[1741952384388,9.09068277,1910.6,1910.2,11.27583]
[1741952384590,9.09068277,1910.6,1910.5,0.06351359]
[1741952384768,9.09068277,1910.6,1910.2,6.04092]
[1741952384981,9.09068277,1910.6,1910.5,0.06351359]
[1741952385506,9.09068277,1910.6,1910.2,6.04092]
[1741952385695,9.09068277,1910.6,1910.5,0.06351359]
[1741952385884,9.09068277,1910.6,1910.2,11.27582]
[1741952386083,9.09068277,1910.6,1910.5,0.06351359]
[1741952386403,9.09068277,1910.6,1910.2,6.04092]
[1741952386598,9.09068277,1910.6,1910.5,0.06351359]
[1741952387100,9.09068277,1910.6,1910.2,11.27582]
[1741952387407,3.0,1910.6,1910.5,0.06351359]
[1741952387606,3.0,1910.6,1910.3,6.362342]
[1741952387904,0.06542709,1910.7,1910.5,0.7847]
[1741952388308,0.06542709,1910.7,1910.6,0.06345515]
[1741952388506,5.29910709,1910.7,1910.6,0.06345515]
[1741952388708,8.23422,1910.6,1910.2,0.55]
[1741952388877,5.29969288,1910.5,1910.2,1.52344846]
[1741952389607,5.29969288,1910.5,1910.2,6.75845846]
[1741952389803,0.06543288,1910.5,1910.2,6.75845846]
[1741952391809,5.29977288,1910.5,1910.2,0.97344846]
[1741952392104,5.29977288,1910.5,1910.1,6.00276]
[1741952392281,5.99789,1910.4,1910.0,5.78559]
[1741952392482,0.06543773,1910.3,1910.0,5.78559]
[1741952392922,0.06543773,1910.3,1909.9,6.01844]
[1741952393092,10.53542773,1910.3,1909.9,6.01844]
[1741952393288,5.23558,1910.1,1909.7,5.9966]
[1741952393478,5.30114742,1910.0,1909.7,0.7602]
[1741952393678,5.30114742,1910.0,1909.6,5.23659]
[1741952393883,5.30114742,1910.0,1909.5,6.05351]
[1741952394111,5.23598,1909.9,1909.6,0.605351]
[1741952394312,6.02578,1909.9,1909.6,0.605351]
[1741952394493,6.09123372,1909.9,1909.6,0.605351]
[1741952395311,0.85525372,1909.9,1909.5,0.8166]
[1741952395511,5.23634,1909.8,1909.4,5.23723]
[1741952395714,0.06545652,1909.7,1909.3,0.8257]
[1741952396023,5.23683,1909.6,1909.3,1.432036]
[1741952396381,5.23683,1909.6,1909.3,6.669556]
[1741952397520,5.23645,1909.7,1909.4,5.3013519]
[1741952398017,5.30163362,1909.8,1909.4,5.8512719]
[1741952398204,5.30163362,1909.8,1909.4,7.10335369]
[1741952399096,5.2366,1909.7,1909.4,1.31622369]
[1741952399293,0.06546046,1909.6,1909.4,1.31622369]
[1741952399610,10.53868302,1909.7,1909.4,1.31622369]
[1741952399819,5.30206302,1909.7,1909.4,1.31622369]
[1741952400314,5.23618,1909.8,1909.4,6.55344369]
[1741952400519,3.06546102,1909.8,1909.5,0.65534437]
[1741952400813,3.0,1909.8,1909.6,5.23646]
[1741952400987,3.0,1909.8,1909.5,6.13194876]
[1741952401184,3.0,1909.8,1909.7,0.06433431]
[1741952401386,3.0,1909.8,1909.6,0.06450742]
[1741952401614,3.0,1909.8,1909.7,0.06428604]
[1741952402014,3.06545907,1909.8,1909.5,6.06791]
[1741952402316,3.0,1909.8,1909.6,0.06399307]
[1741952402625,10.24362,1910.0,1909.6,0.06399307]
[1741952402626,8.23562,1910.0,1909.6,0.06399307]
[1741952402831,3.06545269,1910.0,1909.8,0.7648]
[1741952403031,6.08544851,1910.1,1909.8,6.00084]
[1741952403210,6.08544851,1910.1,1909.9,0.06347381]
[1741952403390,5.2356,1910.0,1909.9,0.06347381]
[1741952403590,5.23605,1909.9,1909.6,0.7648]
[1741952403795,5.30150271,1909.9,1909.6,0.7648]
[1741952404144,5.30150271,1909.9,1909.6,6.656627]
[1741952404423,5.30150272,1909.9,1909.6,6.656627]
[1741952404597,5.30145272,1909.9,1909.6,1.419967]
[1741952404792,5.30145272,1909.9,1909.6,0.655167]
[1741952405207,5.23626,1909.8,1909.6,0.655167]
[1741952405419,5.23626,1909.8,1909.5,5.78687]
[1741952405604,11.26269,1910.0,1909.5,5.83912354]
[1741952405804,11.26269,1910.0,1909.6,5.23652]
[1741952405805,11.26261,1910.0,1909.6,5.23652]
[1741952406071,3.0,1910.0,1909.7,0.7664]
[1741952406241,8.30105262,1910.0,1909.7,6.00273]
[1741952406541,6.02,1910.1,1909.8,5.23605]
[1741952406827,5.23578,1910.0,1909.7,0.7664]
[1741952407045,5.23615,1909.8,1909.6,1.10758235]
[1741952407199,5.23615,1909.8,1909.5,12.13364]
[1741952407397,5.23615,1909.8,1909.5,6.8967]
[1741952407700,10.47249,1909.8,1909.5,6.8967]
[1741952408024,5.30188683,1909.7,1909.5,6.09]
[1741952408224,5.30188819,1909.7,1909.5,6.09]
[1741952408618,5.23643,1909.7,1909.5,6.09]
[1741952409431,5.23618,1909.8,1909.5,6.09]
[1741952409800,10.47253,1909.8,1909.5,6.09]
[1741952409999,10.47252,1909.8,1909.5,6.09]
[1741952410200,5.23618,1909.8,1909.5,6.09]
[1741952410715,5.23669,1909.6,1909.5,6.09]
[1741952411131,5.3021502,1909.6,1909.5,6.09]
[1741952411531,5.23591,1909.9,1909.5,6.09]
[1741952411532,5.23593,1909.9,1909.5,6.09]
[1741952411730,10.47265,1909.8,1909.5,6.699]
[1741952411898,5.30189888,1909.7,1909.5,6.699]
[1741952412307,5.23669,1909.6,1909.5,6.09]
[1741952412619,5.23669,1909.6,1909.5,0.06411189]
[1741952413025,3.06546332,1909.8,1909.4,5.23705]
[1741952413322,5.23658,1909.7,1909.5,0.06411189]
[1741952413633,5.30215055,1909.6,1909.3,0.7652]
[1741952413839,5.30215055,1909.6,1909.3,6.657994]
[1741952413840,5.23669,1909.6,1909.3,6.657994]
[1741952414016,5.23669,1909.6,1909.4,0.06425485]
[1741952414407,5.23669,1909.6,1909.2,5.78764]
[1741952414608,5.23669,1909.6,1909.5,0.06415411]
[1741952414841,5.23669,1909.6,1909.2,11.0252]
[1741952415146,6.00595,1909.7,1909.3,5.23747]
[1741952415307,5.23645,1909.7,1909.4,0.82500995]
[1741952415637,5.23671,1909.6,1909.4,0.82500995]
[1741952416428,10.4736,1909.6,1909.4,0.06240995]
[1741952416628,5.302434,1909.5,1909.4,0.06240995]
[1741952416829,5.23671,1909.6,1909.2,6.59243]
[1741952417056,5.302174,1909.6,1909.4,0.06246426]
[1741952417256,5.302174,1909.6,1909.3,0.06263742]
[1741952417419,5.302174,1909.6,1909.5,0.06229112]
[1741952417620,5.302174,1909.6,1909.4,0.06246426]
[1741952417822,5.302174,1909.6,1909.5,0.06229112]
[1741952418158,5.302174,1909.6,1909.2,7.88214119]
[1741952418316,5.302174,1909.6,1909.3,0.85085154]
[1741952419322,5.23647,1909.7,1909.3,0.85085154]
[1741952419548,5.30226354,1909.6,1909.3,0.85085154]
[1741952419846,5.30226354,1909.6,1909.3,0.06263742]
[1741952420017,5.2371,1909.5,1909.3,0.06263742]
[1741952423044,10.23091089,1909.5,1909.3,0.06263742]
[1741952423228,5.30270743,1909.4,1909.3,0.06263742]
[1741952423437,5.23807,1909.1,1908.8,0.8133]
[1741952423661,9.46748089,1909.1,1908.8,0.8133]
[1741952423934,5.23844,1909.0,1908.8,0.8133]
[1741952424359,9.46748089,1909.1,1908.8,0.8133]
[1741952424533,14.70576089,1909.1,1908.8,0.8133]
[1741952424733,0.06548153,1909.0,1908.8,0.8133]
[1741952425140,10.47633,1909.1,1908.8,0.8133]
[1741952425347,10.54181153,1909.1,1908.8,0.8133]
[1741952425567,5.23835,1909.0,1908.8,0.8133]
[1741952426639,5.23835,1909.0,1908.6,1.3605]
[1741952426834,10.47694,1909.0,1908.6,6.59975]
[1741952427452,10.54300375,1908.9,1908.6,1.3605]
[1741952427670,5.30424375,1908.9,1908.7,0.06421156]
[1741952427838,5.23837,1909.0,1908.7,0.06421156]
[1741952428037,5.23837,1909.0,1908.7,5.23913]
[1741952428233,5.23837,1909.0,1908.8,0.06402496]
[1741952428666,5.23837,1909.0,1908.6,6.65213888]
[1741952428875,5.23837,1909.0,1908.9,0.06383839]
[1741952429050,10.47691,1909.0,1908.6,7.84132177]
[1741952429253,10.47691,1909.0,1908.9,0.06383839]
[1741952429448,10.47691,1909.0,1908.6,6.65213888]
[1741952429656,10.47691,1909.0,1908.9,0.06383839]
[1741952429973,5.23837,1909.0,1908.9,0.06383839]
[1741952430176,10.47691,1909.0,1908.6,6.65213888]
[1741952430393,5.2381,1909.1,1908.7,5.30332156]
[1741952430744,10.47637,1909.1,1908.7,5.30332156]
[1741952430940,12.46713089,1909.3,1908.7,0.06421156]
[1741952431174,5.30329209,1909.2,1908.9,0.8185]
[1741952431375,5.30329209,1909.2,1909.0,0.06365183]
[1741952431676,5.23807,1909.1,1909.0,0.06365183]
[1741952431976,5.23807,1909.1,1908.7,6.05276]
[1741952432175,5.23807,1909.1,1908.8,0.06402496]
[1741952432977,10.47633,1909.1,1908.8,0.11705613]
[1741952433147,0.06548255,1909.0,1908.8,0.11705613]
[1741952433977,10.47633,1909.1,1908.8,0.11705613]
[1741952434846,5.23807,1909.1,1908.8,0.11705613]
[1741952435148,10.47634,1909.1,1908.8,0.11705613]
[1741952435458,10.47581,1909.2,1908.8,5.35590613]
[1741952435667,10.54129247,1909.2,1908.8,6.62042695]
[1741952435863,10.47581,1909.2,1908.8,6.62042695]
[1741952437968,10.476,1909.2,1909.0,0.11721726]
[1741952438217,10.47601,1909.2,1909.0,0.11721726]
[1741952438365,0.06547743,1909.1,1909.0,0.11721726]
[1741952438564,5.30354743,1909.1,1909.0,0.11721726]
[1741952438971,5.30354743,1909.1,1908.7,6.05286]
[1741952438972,10.54179743,1909.1,1908.7,6.05286]
[1741952439177,10.54179743,1909.1,1908.8,0.11790115]
[1741952439593,5.23861,1908.9,1908.8,0.11790115]
[1741952439903,8.30410178,1908.9,1908.8,0.11790115]
[1741952440064,5.23921,1908.7,1908.5,0.7937]
[1741952440879,5.30448188,1908.8,1908.5,0.7937]
[1741952441268,5.30448188,1908.8,1908.5,1.921053]
[1741952441805,8.23861,1908.9,1908.5,7.160593]
[1741952442109,5.23861,1908.9,1908.6,5.2394]
[1741952442304,13.24618,1909.1,1908.7,0.55]
[1741952442506,13.24618,1909.1,1908.8,0.11007522]
[1741952442873,8.23818,1909.1,1908.8,0.11007522]
[1741952443075,8.30366246,1909.1,1908.8,0.11007522]
[1741952443909,13.54191246,1909.1,1908.8,0.11007522]
[1741952444212,13.47643,1909.1,1908.8,0.11007522]
[1741952444611,8.23818,1909.1,1908.8,0.11007522]
[1741952444814,8.3036625,1909.1,1908.8,0.11007522]
[1741952445211,5.23835,1909.0,1908.8,0.11007522]
[1741952446185,13.47636,1909.1,1908.8,0.11007522]
[1741952446385,0.06548249,1909.0,1908.8,0.11007522]
[1741952446697,6.02991,1908.9,1908.8,0.11007522]
[1741952446900,5.23861,1908.9,1908.8,0.11007522]
[1741952447085,5.23849,1909.0,1908.6,6.03087]
[1741952447282,10.47701,1909.0,1908.8,0.11003318]
[1741952447483,5.23849,1909.0,1908.7,0.11020947]
[1741952447684,5.23849,1909.0,1908.9,0.1098569]
[1741952447884,5.23849,1909.0,1908.8,0.11003318]
[1741952448087,5.23849,1909.0,1908.9,0.1098569]
[1741952448395,5.23849,1909.0,1908.6,6.08321897]
[1741952448596,5.23849,1909.0,1908.9,0.1098569]
[1741952448792,5.23849,1909.0,1908.6,0.7916]
[1741952448793,5.23872,1908.9,1908.6,0.7916]
[1741952449118,0.06548752,1908.8,1908.7,0.11020947]
[1741952449318,0.06548752,1908.8,1908.6,0.7916]
[1741952449516,10.54345752,1908.8,1908.4,5.23996]
[1741952449688,10.54345752,1908.8,1908.7,0.11020947]
[1741952450015,5.23919,1908.7,1908.4,0.7907]
[1741952451014,5.30495264,1908.6,1908.3,5.24012]
[1741952451229,5.23919,1908.7,1908.3,10.48022]
[1741952451529,5.30468624,1908.7,1908.3,5.2401]
[1741952451909,10.54403624,1908.7,1908.3,5.2401]
[1741952452112,5.30468624,1908.7,1908.3,5.2401]
[1741952452433,10.54405624,1908.7,1908.3,5.2401]
[1741952452800,5.30468624,1908.7,1908.3,5.2401]
[1741952453530,5.23892,1908.8,1908.4,6.0039]
[1741952453706,0.06549617,1908.7,1908.4,0.764]
[1741952453910,5.30479617,1908.7,1908.4,0.764]
[1741952457539,5.30479617,1908.7,1908.5,0.10366708]
[1741952458512,5.23944,1908.6,1908.5,0.10366708]
[1741952459041,5.30493646,1908.6,1908.5,0.10366708]
[1741952459243,5.30493646,1908.6,1908.2,11.26141]
[1741952459444,5.30493646,1908.6,1908.5,0.10366708]
[1741952459813,5.30493646,1908.6,1908.2,11.26127]
[1741952460012,5.30493646,1908.6,1908.5,0.10379322]
[1741952460240,5.30493646,1908.6,1908.2,11.26127]
[1741952460447,10.54454646,1908.6,1908.5,0.10379322]
[1741952460623,10.54454646,1908.6,1908.2,6.02088]
[1741952460942,5.30493646,1908.6,1908.5,0.10379322]
[1741952461124,5.30493646,1908.6,1908.2,7.202047]
[1741952461318,5.24008,1908.4,1908.3,0.10414594]
[1741952461518,5.24008,1908.4,1908.1,6.05558]
[1741952461842,5.24031,1908.3,1908.2,0.10086974]
[1741952462047,5.30581537,1908.3,1908.2,0.10086974]
[1741952462209,10.54632537,1908.3,1907.9,6.05607]
[1741952462409,5.30581537,1908.3,1908.2,0.10086974]
[1741952462645,10.54625537,1908.3,1907.9,6.05602]
[1741952462825,10.54625537,1908.3,1908.2,0.10086974]
[1741952463014,10.54625537,1908.3,1907.9,6.05602]
[1741952463216,5.30581537,1908.3,1908.2,0.10086974]
[1741952463416,5.30581537,1908.3,1908.0,5.24108]
[1741952463617,5.30581537,1908.3,1908.2,0.10086974]
[1741952464114,5.7847,1908.6,1908.2,0.10086974]
[1741952464314,5.85020422,1908.6,1908.2,5.9988]
[1741952464519,3.06550559,1908.6,1908.4,5.23987]
[1741952464714,3.06550559,1908.6,1908.5,0.10034063]
[1741952464715,3.0,1908.6,1908.5,0.10034063]
[1741952464943,3.0654963,1908.6,1908.5,0.10034063]
[1741952465448,3.0,1908.6,1908.5,0.10034063]
[1741952465651,3.764,1908.8,1908.5,0.10034063]
[1741952465815,8.30432218,1908.9,1908.5,5.33983063]
[1741952466019,5.30429218,1908.9,1908.5,5.33983063]
[1741952466241,5.30423218,1908.9,1908.5,5.33983063]
[1741952466441,8.30423218,1908.9,1908.5,10.57942063]
[1741952466642,8.30423218,1908.9,1908.6,5.2394]
[1741952466970,8.30423218,1908.9,1908.7,0.09998799]
[1741952467173,3.06549218,1908.9,1908.6,5.23922]
[1741952467346,3.06549218,1908.9,1908.7,0.09998799]
[1741952467551,3.06549218,1908.9,1908.6,5.23922]
[1741952467747,8.30428218,1908.9,1908.7,0.09998799]
[1741952467947,9.7138404,1908.9,1908.5,5.2397]
[1741952468152,8.30428218,1908.9,1908.5,5.2397]
[1741952468369,13.54311218,1908.9,1908.6,0.1001643]
[1741952468570,3.0,1908.9,1908.6,0.1001643]
[1741952468771,5.23904,1908.8,1908.6,0.1001643]
[1741952468973,5.23904,1908.8,1908.7,0.09998799]
[1741952469173,5.23904,1908.8,1908.4,11.23802]
[1741952469369,5.23904,1908.8,1908.5,0.10034063]
[1741952469575,8.30419293,1908.9,1908.5,5.34002063]
[1741952470865,13.54299293,1908.9,1908.5,5.34002063]
[1741952471066,13.4775,1908.9,1908.5,5.34002063]
[1741952471267,0.06549116,1908.8,1908.5,5.34002063]
[1741952471576,5.30446116,1908.8,1908.5,0.10034063]
[1741952471873,10.54353116,1908.8,1908.5,0.10034063]
[1741952472045,5.30446116,1908.8,1908.5,5.33996063]
[1741952473080,6.01016,1908.7,1908.5,0.10034063]
[1741952473249,13.30514967,1908.6,1908.5,0.10034063]
[1741952473571,5.24009,1908.4,1908.1,5.24079]
[1741952473785,5.30559836,1908.4,1908.2,0.09097506]
[1741952474092,5.30559836,1908.4,1908.0,6.01337]
[1741952474382,10.54582836,1908.4,1908.0,7.13884]
[1741952474588,5.24036,1908.3,1908.1,0.09115147]
[1741952474785,0.06550942,1908.2,1908.1,0.09115147]
[1741952474957,5.30604942,1908.2,1907.9,5.24133]
[1741952475156,5.30604942,1908.2,1908.0,0.09132789]
[1741952475886,5.24081,1908.1,1908.0,0.09132789]
[1741952476263,5.24109,1908.0,1907.9,0.48924316]
[1741952476458,5.3066082,1908.0,1907.9,0.48924316]
[1741952476691,10.32731909,1908.0,1907.9,0.48924316]
[1741952477001,13.32732484,1908.0,1907.9,0.48924316]
[1741952477292,5.24187,1907.8,1907.6,0.48924316]
[1741952477462,0.06553042,1907.7,1907.6,0.48924316]
[1741952477864,5.30744042,1907.7,1907.6,0.48924316]
[1741952478356,5.30744042,1907.7,1907.3,6.48275316]
[1741952478971,5.24187,1907.8,1907.4,5.24262]
[1741952479389,10.4837,1907.8,1907.4,5.24262]
[1741952479582,5.24137,1907.9,1907.3,0.7505]
[1741952479759,10.48295,1907.9,1907.4,5.24273]
[1741952479961,5.24137,1907.9,1907.4,5.24266]
[1741952480156,5.2418,1907.8,1907.4,10.4852]
[1741952480382,5.2418,1907.8,1907.5,5.24239]
[1741952481497,13.02071089,1908.0,1907.7,5.24181]
[1741952481698,0.0655236,1907.9,1907.8,5.24163]
[1741952482067,3.06552062,1908.0,1907.8,5.24163]
[1741952482593,3.06552062,1908.0,1907.7,5.24187]
[1741952482793,9.13740368,1908.0,1907.6,6.05765]
[1741952483000,5.24138,1907.9,1907.6,6.05765]
[1741952483604,8.30669062,1908.0,1907.6,6.05765]
[1741952483901,6.03276,1907.9,1907.5,10.48474]
[1741952484773,6.03276,1907.9,1907.6,5.24217]
[1741952485021,6.03276,1907.9,1907.5,5.24221]
[1741952485170,6.09828117,1907.9,1907.5,10.48451]
[1741952485803,6.09828117,1907.9,1907.5,11.611721]
[1741952485998,0.85682117,1907.9,1907.6,5.24205]
[1741952486203,6.09823117,1907.9,1907.6,5.24205]
[1741952486608,0.85682117,1907.9,1907.6,5.24205]
[1741952486972,6.09825117,1907.9,1907.6,5.24205]
[1741952487267,0.85682117,1907.9,1907.6,5.24205]
[1741952487483,0.06552117,1907.9,1907.7,0.09003487]
[1741952487898,0.06552117,1907.9,1907.6,5.24205]
[1741952488101,0.06552117,1907.9,1907.8,0.08985839]
[1741952488468,5.30691117,1907.9,1907.8,0.08985839]
[1741952489492,0.06552117,1907.9,1907.8,0.08985839]
[1741952489688,5.30688117,1907.9,1907.8,0.08985839]
[1741952490277,6.66168629,1907.9,1907.8,0.08985839]
[1741952491214,6.66168629,1907.9,1907.5,5.24236]
[1741952491419,5.30688117,1907.9,1907.8,0.08699707]
[1741952491712,5.30688117,1907.9,1907.5,5.24236]
[1741952491927,5.30688117,1907.9,1907.8,0.08699707]
[1741952492121,5.30688117,1907.9,1907.6,5.24213]
[1741952492292,8.24117,1908.0,1907.8,0.08699707]
[1741952492491,8.24117,1908.0,1907.7,6.08358355]
[1741952492492,9.7340201,1908.0,1907.7,6.08358355]
[1741952492720,8.3066911,1908.0,1907.9,0.08682061]
[1741952492926,8.3066911,1908.0,1907.8,0.08699707]
[1741952492927,3.0655211,1908.0,1907.8,0.08699707]
[1741952493086,3.0,1908.0,1907.9,0.08682061]
[1741952493399,3.0,1908.0,1907.7,11.23818]
[1741952493598,3.0,1908.0,1907.8,0.08699707]
[1741952495219,3.0655207,1908.0,1907.8,0.08699707]
[1741952495393,3.0,1908.0,1907.8,0.08699707]
[1741952495595,3.06552073,1908.0,1907.8,0.08699707]
[1741952495920,3.0,1908.0,1907.8,0.08699707]
[1741952496318,3.0,1908.0,1907.8,5.32859707]
[1741952496525,3.0655201,1908.0,1907.8,5.32859707]
[1741952496725,3.0,1908.0,1907.8,10.57005707]
[1741952496925,17.05261,1908.3,1907.9,5.24111]
[1741952497105,3.06551619,1908.2,1907.9,5.24111]
[1741952497308,8.30608619,1908.2,1908.0,0.08647639]
[1741952497824,8.30608619,1908.2,1907.8,5.2416]
[1741952498028,8.30608619,1908.2,1908.1,0.08629398]
[1741952498194,10.23995581,1908.2,1907.8,5.2416]
[1741952498395,8.30608619,1908.2,1907.9,0.0866049]